fUSD/lending_fUSD_20251225
["ID","MTS","AMOUNT","RATE_DAILY","PERIOD"]
[399700979,1766627465439,-558.31,0.00035616,2]
[399700980,1766627465449,-500.0,0.00035637,30]
[399700981,1766627465458,-602.24742729,0.00035638,30]
[399700982,1766627465468,-589.0,0.00035638,30]
[399700983,1766627465478,-511.04343798,0.00035638,30]
[399700984,1766627465487,-476.0,0.00035638,30]
[399700985,1766627465497,-500.0,0.00035638,30]
[399700986,1766627465507,-589.0,0.00035665,30]
[399700987,1766627465516,-476.0,0.00035665,30]
[399700988,1766627465526,-500.0,0.00035665,30]
[399700989,1766627465536,-589.0,0.00035692,30]
[399700990,1766627465545,-476.0,0.00035692,30]
[399700991,1766627465555,-500.0,0.00035692,30]
[399700992,1766627465566,-168.74,0.000357,14]
[399700993,1766627465575,-589.0,0.0003572,30]
[399700994,1766627465584,-476.0,0.0003572,30]
[399700995,1766627465594,-500.0,0.0003572,30]
[399700996,1766627465604,-589.0,0.00035747,30]
[399700997,1766627465614,-476.0,0.00035747,30]
[399700998,1766627465624,-500.0,0.00035747,30]
[399700999,1766627465633,-416.03518578,0.0003577,2]
[399701000,1766627465643,-357.6762453,0.0003577,2]
[399701001,1766627465655,-589.0,0.00035775,30]
[399701002,1766627465665,-476.0,0.00035775,30]
[399701003,1766627465675,-523.44379661,0.00035775,30]
[399701004,1766627465685,-589.0,0.00035802,30]
[399701005,1766627465694,-476.0,0.00035802,30]
[399701006,1766627465704,-589.0,0.00035829,30]
[399701007,1766627465714,-476.0,0.00035829,30]
[399701008,1766627465723,-589.0,0.00035857,30]
[399701009,1766627465732,-476.0,0.00035857,30]
[399701010,1766627465742,-589.0,0.00035884,30]
[399701011,1766627465751,-476.0,0.00035884,30]
[399701012,1766627465762,-589.0,0.00035912,30]
[399701013,1766627465771,-476.0,0.00035912,30]
[399701014,1766627465780,-589.0,0.00035939,30]
[399701015,1766627465790,-476.0,0.00035939,30]
[399701016,1766627465799,-589.0,0.00035966,30]
[399701017,1766627465809,-476.0,0.00035966,30]
[399701018,1766627465819,-589.0,0.00035994,30]
[399701019,1766627465828,-476.0,0.00035994,30]
[399701020,1766627465838,-6082.8,0.00036,2]
[399701021,1766627465847,-160.26345252,0.00036009,2]
[399701022,1766627465857,-596.5742694,0.00036021,30]
[399701023,1766627465866,-496.22947245,0.00036021,30]
[399701024,1766627465875,-3459.0,0.00036087,2]
[399701025,1766627465885,-612.0,0.00036087,2]
[399701026,1766627465894,-1327.0,0.00036087,2]
[399701027,1766627465904,-432.0,0.00036087,2]
[399701028,1766627465914,-1263.0,0.00036087,2]
[399701029,1766627465923,-6534.0,0.00036087,2]
[399701030,1766627465934,-4807.0,0.00036087,2]
[399701031,1766627465944,-113574.55,0.000361,14]
[399701032,1766627465953,-113574.54,0.000361,14]
[399701033,1766627465960,-151.0,0.000361,31]
[399701034,1766627465969,-151.0,0.000361,31]
[399701035,1766627465975,-151.0,0.000361,31]
[399701036,1766627465982,-267.750001,0.000361,31]
[399701037,1766627465989,-151.0,0.000361,31]
[399701038,1766627465995,-151.0,0.000361,31]
[399701039,1766627466005,-151.0,0.000361,31]
[399701040,1766627466012,-151.0,0.000361,31]
[399701041,1766627466022,-211.422346,0.000361,31]
[399701042,1766627466031,-151.0,0.000361,31]
[399701043,1766627466041,-211.422346,0.000361,31]
[399701044,1766627466050,-151.0,0.000361,31]
[399701045,1766627466061,-151.0,0.000361,31]
[399701046,1766627466070,-211.422346,0.000361,31]
[399701047,1766627466080,-211.422346,0.000361,31]
[399701048,1766627466090,-151.0,0.000361,31]
[399701049,1766627466099,-164.201967,0.000361,31]
[399701050,1766627466109,-151.0,0.000361,31]
[399701051,1766627466120,-151.0,0.000361,31]
[399701052,1766627466254,-151.0,0.000361,31]
[399701053,1766627466264,-151.0,0.000361,31]
[399701054,1766627466274,-151.0,0.000361,31]
[399701055,1766627466283,-237.499226,0.000361,31]
[399701056,1766627466292,-151.0,0.000361,31]
[399701057,1766627466303,-254.186791,0.000361,31]
[399701058,1766627466313,-398.096764,0.000361,31]
[399701059,1766627466322,-254.186791,0.000361,31]
[399701060,1766627466331,-398.096764,0.000361,31]
[399701061,1766627466341,-254.186791,0.000361,31]
[399701062,1766627466351,-151.0,0.000361,31]
[399701063,1766627466361,-398.096764,0.000361,31]
[399701064,1766627466371,-254.186791,0.000361,31]
[399701065,1766627466381,-398.096764,0.000361,31]
[399701066,1766627466390,-151.0,0.000361,31]
[399701067,1766627466400,-151.0,0.000361,31]
[399701068,1766627466410,-151.0,0.000361,31]
[399701069,1766627466419,-151.0,0.000361,31]
[399701070,1766627466429,-152.85241,0.000361,31]
[399701071,1766627466439,-151.0,0.000361,31]
[399701072,1766627466448,-164.1729,0.000361,31]
[399701073,1766627466459,-151.0,0.000361,31]
[399701074,1766627466469,-151.0,0.000361,31]
[399701075,1766627466479,-151.0,0.000361,31]
[399701076,1766627466489,-151.0,0.000361,31]
[399701077,1766627466499,-151.0,0.000361,31]
[399701078,1766627466508,-166.006629,0.000361,31]
[399701079,1766627466518,-161.874996,0.000361,31]
[399701080,1766627466527,-161.874996,0.000361,31]
[399701081,1766627466538,-161.874996,0.000361,31]
[399701082,1766627466547,-151.0,0.000361,31]
[399701083,1766627466557,-161.874996,0.000361,31]
[399701084,1766627466567,-151.0,0.000361,31]
[399701085,1766627466577,-151.0,0.000361,31]
[399701086,1766627466586,-275.464597,0.000361,31]
[399701087,1766627466596,-234.254702,0.000361,31]
[399701088,1766627466606,-275.464597,0.000361,31]
[399701089,1766627466616,-151.0,0.000361,31]
[399701090,1766627466626,-234.254702,0.000361,31]
[399701091,1766627466636,-275.464597,0.000361,31]
[399701092,1766627466645,-234.254702,0.000361,31]
[399701093,1766627466655,-151.0,0.000361,31]
[399701094,1766627466666,-151.0,0.000361,31]
[399701095,1766627466675,-275.464597,0.000361,31]
[399701096,1766627466685,-234.254702,0.000361,31]
[399701097,1766627466694,-151.0,0.000361,31]
[399701098,1766627466703,-151.0,0.000361,31]
[399701099,1766627466713,-151.0,0.000361,31]
[399701100,1766627466723,-200.564097,0.000361,31]
[399701101,1766627466732,-151.0,0.000361,31]
[399701102,1766627466742,-151.0,0.000361,31]
[399701103,1766627466752,-151.0,0.000361,31]
[399701104,1766627466761,-180.545858,0.000361,31]
[399701105,1766627466771,-151.0,0.000361,31]
[399701106,1766627466781,-180.545858,0.000361,31]
[399701107,1766627466790,-200.0,0.00036109,10]
[399701108,1766627466801,-360.36,0.000362,30]
[399701109,1766627466811,-961.89201745,0.00036348,5]
[399701110,1766627466821,-4786.532,0.00036886,46]
[399701111,1766627466832,-311.49,0.00036886,46]
[399701112,1766627466841,-383.35,0.000369,14]
[399701113,1766627466851,-3290.73,0.00036986,120]
[399701114,1766627466860,-223.2499621,0.00037,30]
[399701115,1766627466870,-152.0,0.0003704,4]
[399701116,1766627466880,-150.0,0.0003705,7]
[399701117,1766627466889,-953.0,0.00037092,2]
[399701118,1766627466898,-168.74,0.000371,14]
[399701119,1766627466908,-218.59,0.000371,14]
[399701120,1766627466917,-13127.5,0.00037118,5]
[399701121,1766627466931,-431.42848765,0.00037139,2]
[399701122,1766627466941,-370.91026638,0.00037139,2]
[399701123,1766627466951,-668.65185757,0.00037143,2]
[399701124,1766627466960,-953.0,0.00037143,2]
[399701125,1766627466971,-1678.0,0.00037163,2]
[399701126,1766627466981,-500.0,0.00037184,30]
[399701127,1766627466991,-953.0,0.00037185,2]
[399701128,1766627467001,-500.0,0.00037185,2]
[399701129,1766627467010,-516.0,0.00037185,2]
[399701130,1766627467020,-500.0,0.00037185,2]
[399701131,1766627467029,-500.0,0.00037185,2]
[399701132,1766627467039,-500.0,0.00037185,2]
[399701133,1766627467048,-500.0,0.00037185,2]
[399701134,1766627467058,-500.0,0.00037185,2]
[399701135,1766627467068,-500.0,0.00037185,2]
[399701136,1766627467078,-500.0,0.00037185,2]
[399701137,1766627467087,-500.0,0.00037185,2]
[399701138,1766627467097,-500.0,0.00037185,2]
[399701139,1766627467106,-500.0,0.00037185,2]
[399701140,1766627467116,-500.0,0.00037185,2]
[399701141,1766627467125,-500.0,0.00037185,2]
[399701142,1766627467136,-500.0,0.00037185,2]
[399701143,1766627467145,-500.0,0.00037185,2]
[399701144,1766627467155,-500.0,0.00037185,2]
[399701145,1766627467164,-500.0,0.00037185,2]
[399701146,1766627467175,-500.0,0.00037185,2]
[399701147,1766627467185,-500.0,0.00037185,2]
[399701148,1766627467195,-500.0,0.00037185,2]
[399701149,1766627467205,-500.0,0.00037185,2]
[399701150,1766627467213,-500.0,0.00037185,2]
[399701151,1766627467222,-500.0,0.00037185,2]
[399701152,1766627467232,-500.0,0.00037185,2]
[399701153,1766627467241,-500.0,0.00037185,2]
[399701154,1766627467251,-500.0,0.00037185,2]
[399701155,1766627467260,-500.0,0.00037185,2]
[399701156,1766627467270,-500.0,0.00037185,2]
[399701157,1766627467280,-500.0,0.00037185,2]
[399701158,1766627467290,-500.0,0.00037185,2]
[399701159,1766627467300,-500.0,0.00037185,2]
[399701160,1766627467310,-500.0,0.00037185,2]
[399701161,1766627467319,-500.0,0.00037185,2]
[399701162,1766627467329,-500.0,0.00037185,2]
[399701163,1766627467339,-500.0,0.00037185,2]
[399701164,1766627467348,-500.0,0.00037185,2]
[399701165,1766627467358,-500.0,0.00037185,2]
[399701166,1766627467368,-500.0,0.00037185,2]
[399701167,1766627467378,-500.0,0.00037185,2]
[399701168,1766627467388,-500.0,0.00037185,2]
[399701169,1766627467398,-500.0,0.00037185,2]
[399701170,1766627467408,-500.0,0.00037185,2]
[399701171,1766627467418,-500.0,0.00037185,2]
[399701172,1766627467431,-500.0,0.00037185,2]
[399701173,1766627467441,-500.0,0.00037185,2]
[399701174,1766627467451,-500.0,0.00037185,2]
[399701175,1766627467460,-500.0,0.00037185,2]
[399701176,1766627467470,-500.0,0.00037185,2]
[399701177,1766627467480,-500.0,0.00037185,2]
[399701178,1766627467490,-500.0,0.00037185,2]
[399701179,1766627467499,-500.0,0.00037185,2]
[399701180,1766627467515,-500.0,0.00037185,2]
[399701181,1766627467525,-500.0,0.00037185,2]
[399701182,1766627467535,-500.0,0.00037185,2]
[399701183,1766627467545,-500.0,0.00037185,2]
[399701184,1766627467556,-500.0,0.00037185,2]
[399701185,1766627467566,-500.0,0.00037185,2]
[399701186,1766627467577,-500.0,0.00037185,2]
[399701187,1766627467589,-500.0,0.00037185,2]
[399701188,1766627467599,-500.0,0.00037185,2]
[399701189,1766627467609,-500.0,0.00037185,2]
[399701190,1766627467620,-500.0,0.00037185,2]
[399701191,1766627467630,-500.0,0.00037185,2]
[399701192,1766627467639,-500.0,0.00037185,2]
[399701193,1766627467650,-500.0,0.00037185,2]
[399701194,1766627467660,-500.0,0.00037185,2]
[399701195,1766627467670,-500.0,0.00037185,2]
[399701196,1766627467680,-500.0,0.00037185,2]
[399701197,1766627467690,-500.0,0.00037185,2]
[399701198,1766627467700,-500.0,0.00037185,2]
[399701199,1766627467709,-500.0,0.00037185,2]
[399701200,1766627467719,-500.0,0.00037185,2]
[399701201,1766627467729,-500.0,0.00037185,2]
[399701202,1766627467739,-500.0,0.00037185,2]
[399701203,1766627467749,-500.0,0.00037185,2]
[399701204,1766627467759,-500.0,0.00037185,2]
[399701205,1766627467768,-500.0,0.00037185,2]
[399701206,1766627467779,-500.0,0.00037185,2]
[399701207,1766627467789,-500.0,0.00037185,2]
[399701208,1766627467798,-500.0,0.00037185,2]
[399701209,1766627467809,-500.0,0.00037185,2]
[399701210,1766627467819,-500.0,0.00037185,2]
[399701211,1766627467829,-500.0,0.00037185,2]
[399701212,1766627467839,-500.0,0.00037185,2]
[399701213,1766627467849,-500.0,0.00037185,2]
[399701214,1766627467858,-500.0,0.00037185,2]
[399701215,1766627467874,-500.0,0.00037185,2]
[399701216,1766627467884,-500.0,0.00037185,2]
[399701217,1766627467894,-500.0,0.00037185,2]
[399701218,1766627467905,-500.0,0.00037185,2]
[399701219,1766627467915,-660.0,0.00037185,2]
[399701220,1766627467929,-1000.0,0.000372,7]
[399701221,1766627467940,-195.93148736,0.000372,120]
[399701222,1766627467950,-195.93148735,0.000372,120]
[399701223,1766627467959,-195.93148735,0.000372,120]
[399701224,1766627467971,-195.93148735,0.000372,120]
[399701225,1766627467982,-195.93148735,0.000372,120]
[399701226,1766627467993,-500.0,0.00037235,2]
[399701227,1766627468003,-500.0,0.00037235,2]
[399701228,1766627468014,-500.0,0.00037235,2]
[399701229,1766627468025,-500.0,0.00037235,2]
[399701230,1766627468035,-500.0,0.00037235,2]
[399701231,1766627468046,-500.0,0.00037235,2]
[399701232,1766627468056,-500.0,0.00037235,2]
[399701233,1766627468066,-500.0,0.00037235,2]
[399701234,1766627468077,-500.0,0.00037235,2]
[399701235,1766627468087,-500.0,0.00037235,2]
[399701236,1766627468098,-500.0,0.00037235,2]
[399701237,1766627468108,-500.0,0.00037235,2]
[399701238,1766627468118,-500.0,0.00037235,2]
[399701239,1766627468129,-500.0,0.00037235,2]
[399701240,1766627468139,-500.0,0.00037235,2]
[399701241,1766627468149,-500.0,0.00037235,2]
[399701242,1766627468160,-500.0,0.00037235,2]
[399701243,1766627468170,-500.0,0.00037235,2]
[399701244,1766627468180,-500.0,0.00037235,2]
[399701245,1766627468191,-500.0,0.00037235,2]
[399701246,1766627468201,-500.0,0.00037235,2]
[399701247,1766627468211,-500.0,0.00037235,2]
[399701248,1766627468221,-500.0,0.00037235,2]
[399701249,1766627468234,-500.0,0.00037235,2]
[399701250,1766627468245,-610.0,0.00037235,2]
[399701251,1766627468254,-500.0,0.00037235,2]
[399701252,1766627468264,-500.0,0.00037235,2]
[399701253,1766627468274,-500.0,0.00037235,2]
[399701254,1766627468284,-500.0,0.00037235,2]
[399701255,1766627468294,-500.0,0.00037235,2]
[399701256,1766627468304,-500.0,0.00037235,2]
[399701257,1766627468314,-500.0,0.00037235,2]
[399701258,1766627468323,-500.0,0.00037235,2]
[399701259,1766627468333,-500.0,0.00037235,2]
[399701260,1766627468343,-500.0,0.00037235,2]
[399701261,1766627468354,-500.0,0.00037235,2]
[399701262,1766627468364,-500.0,0.00037235,2]
[399701263,1766627468374,-500.0,0.00037235,2]
[399701264,1766627468385,-500.0,0.00037235,2]
[399701265,1766627468395,-500.0,0.00037235,2]
[399701266,1766627468405,-500.0,0.00037235,2]
[399701267,1766627468415,-500.0,0.00037235,2]
[399701268,1766627468429,-500.0,0.00037235,2]
[399701269,1766627468443,-500.0,0.00037235,2]
[399701270,1766627468453,-500.0,0.00037235,2]
[399701271,1766627468833,-500.0,0.00037235,2]
[399701272,1766627468845,-500.0,0.00037235,2]
[399701273,1766627468854,-500.0,0.00037235,2]
[399701274,1766627468864,-500.0,0.00037235,2]
[399701275,1766627468873,-500.0,0.00037235,2]
[399701276,1766627468883,-500.0,0.00037235,2]
[399701277,1766627468893,-514.0,0.00037235,2]
[399701278,1766627468904,-500.0,0.00037235,2]
[399701279,1766627468914,-500.0,0.00037235,2]
[399701280,1766627468923,-500.0,0.00037235,2]
[399701281,1766627468934,-500.0,0.00037235,2]
[399701282,1766627468945,-500.0,0.00037235,2]
[399701283,1766627468956,-500.0,0.00037235,2]
[399701284,1766627468966,-500.0,0.00037235,2]
[399701285,1766627468976,-500.0,0.00037235,2]
[399701286,1766627468986,-500.0,0.00037235,2]
[399701287,1766627468995,-500.0,0.00037235,2]
[399701288,1766627469006,-500.0,0.00037235,2]
[399701289,1766627469016,-500.0,0.00037235,2]
[399701290,1766627469026,-500.0,0.00037235,2]
[399701291,1766627469036,-500.0,0.00037235,2]
[399701292,1766627469047,-500.0,0.00037235,2]
[399701293,1766627469057,-836.0,0.00037235,2]
[399701294,1766627469066,-1678.0,0.00037286,7]
[399701295,1766627469076,-559.11,0.0003737,2]
[399701296,1766627469086,-554.17,0.0003737,2]
[399701297,1766627469096,-554.17,0.0003737,2]
[399701298,1766627469106,-554.17,0.0003737,2]
[399701299,1766627469117,-554.17,0.0003737,2]
[399701300,1766627469127,-1108.34,0.0003737,2]
[399701301,1766627469138,-200.0,0.00037398,10]
[399701302,1766627469147,-1678.0,0.00037398,2]
[399701303,1766627469157,-162.0,0.000374,11]
[399701304,1766627469166,-150.0,0.00037456,2]
[399701305,1766627469176,-150.0,0.00037456,2]
[399701306,1766627469186,-150.0,0.00037456,2]
[399701307,1766627469195,-150.0,0.00037456,2]
[399701308,1766627469206,-953.0,0.00037467,2]
[399701309,1766627469216,-500.0,0.000375,30]
[399701310,1766627469226,-500.0,0.00037507,2]
[399701311,1766627469236,-162.16,0.00037518,2]
[399701312,1766627469246,-301.51541097,0.00037711,2]
[399701313,1766627469256,-1444.0,0.00037753,120]
[399701314,1766627469265,-300.0,0.00037767,2]
[399701315,1766627469275,-360.36,0.000378,30]
[399701316,1766627469285,-113574.55,0.000378,14]
[399701317,1766627469295,-12882.77985092,0.0003783,2]
[399701318,1766627469305,-162.0,0.00037832,11]
[399701319,1766627469314,-953.0,0.00037842,2]
[399701320,1766627469323,-300.0,0.00037861,2]
[399701321,1766627469332,-383.35,0.000379,14]
[399701322,1766627469342,-2000.0,0.000379,2]
[399701323,1766627469351,-361.63,0.000379,120]
[399701324,1766627469361,-953.0,0.00037964,2]
[399701325,1766627469371,-3088.80399449,0.00038,120]
[399701326,1766627469382,-500.0,0.00038,30]
[399701327,1766627469392,-152.0,0.00038,30]
[399701328,1766627469401,-211.0,0.00038,30]
[399701329,1766627469411,-500.0,0.00038,30]
[399701330,1766627469420,-500.0,0.00038,30]
[399701331,1766627469430,-500.0,0.00038,30]
[399701332,1766627469440,-300.0,0.00038016,2]
[399701333,1766627469449,-1000.0,0.000381,7]
[399701334,1766627469459,-162.0,0.00038152,11]
[399701335,1766627469468,-150.06,0.00038192,2]
[399701336,1766627469478,-168.74,0.000382,14]
[399701337,1766627469488,-300.0,0.00038205,2]
[399701338,1766627469499,-3603.11855064,0.00038223,120]
[399701339,1766627469508,-1000.0,0.00038256,7]
[399701340,1766627469519,-1000.0,0.00038264,7]
[399701341,1766627469528,-150.0,0.00038278,2]
[399701342,1766627469538,-150.0,0.00038278,2]
[399701343,1766627469547,-150.0,0.00038278,2]
[399701344,1766627469558,-150.0,0.00038278,2]
[399701345,1766627469569,-150.0,0.00038278,2]
[399701346,1766627469579,-150.0,0.00038278,2]
[399701347,1766627469589,-150.0,0.00038278,2]
[399701348,1766627469600,-150.0,0.00038278,2]
[399701349,1766627469610,-150.0,0.00038278,2]
[399701350,1766627469619,-150.0,0.00038278,2]
[399701351,1766627469629,-150.0,0.00038278,2]
[399701352,1766627469639,-150.0,0.00038278,2]
[399701353,1766627469649,-150.14,0.00038278,2]
[399701354,1766627469658,-298.61,0.00038278,2]
[399701355,1766627469667,-150.0,0.00038278,2]
[399701356,1766627469677,-150.0,0.00038278,2]
[399701357,1766627469686,-150.0,0.00038278,2]
[399701358,1766627469696,-150.0,0.00038278,2]
[399701359,1766627469705,-150.0,0.00038278,2]
[399701360,1766627469715,-150.0,0.00038278,2]
[399701361,1766627469725,-150.0,0.00038278,2]
[399701362,1766627469734,-150.0,0.00038278,2]
[399701363,1766627469744,-150.0,0.00038278,2]
[399701364,1766627469753,-150.0,0.00038278,2]
[399701365,1766627469763,-150.0,0.00038278,2]
[399701366,1766627469772,-150.0,0.00038278,2]
[399701367,1766627469782,-300.0,0.00038278,2]
[399701368,1766627469792,-150.0,0.00038278,2]
[399701369,1766627469801,-1000.0,0.00038292,7]
[399701370,1766627469812,-953.0,0.000383,2]
[399701371,1766627469822,-300.0,0.00038328,2]
[399701372,1766627469831,-1000.0,0.00038353,7]
[399701373,1766627469841,-3290.73,0.00038356,120]
[399701374,1766627469851,-892.23,0.00038356,5]
[399701375,1766627469861,-162.0,0.0003836,11]
[399701376,1766627469871,-162.0,0.0003836,11]
[399701377,1766627469880,-1000.0,0.0003837,7]
[399701378,1766627469890,-1000.0,0.000384,7]
[399701379,1766627469899,-212.08509414,0.00038403,7]
[399701380,1766627469908,-1000.0,0.00038403,7]
[399701381,1766627469919,-1000.0,0.00038406,7]
[399701382,1766627469929,-1000.0,0.00038409,7]
[399701383,1766627469941,-1000.0,0.00038411,7]
[399701384,1766627469952,-1000.0,0.00038423,7]
[399701385,1766627469961,-1000.0,0.00038433,7]
[399701386,1766627469971,-150.0,0.00038435,7]
[399701387,1766627469982,-1000.0,0.00038436,7]
[399701388,1766627469992,-150.0,0.00038445,7]
[399701389,1766627470002,-1000.0,0.00038468,7]
[399701390,1766627470014,-160.0,0.00038472,11]
[399701391,1766627470024,-953.0,0.00038473,2]
[399701392,1766627470033,-1000.0,0.00038475,7]
[399701393,1766627470043,-218.59,0.000385,14]
[399701394,1766627470053,-447.3913417,0.00038508,2]
[399701395,1766627470064,-384.63394623,0.00038508,2]
[399701396,1766627470073,-300.0,0.00038513,2]
[399701397,1766627470083,-1000.0,0.00038519,7]
[399701398,1766627470092,-150.0,0.00038528,7]
[399701399,1766627470102,-1000.0,0.00038529,7]
[399701400,1766627470112,-1000.0,0.00038529,7]
[399701401,1766627470121,-150.0,0.00038534,7]
[399701402,1766627470130,-150.0,0.0003854,7]
[399701403,1766627470140,-1000.0,0.00038551,7]
[399701404,1766627470151,-1081.61238017,0.00038555,2]
[399701405,1766627470160,-367.60806407,0.00038555,2]
[399701406,1766627470170,-594.69391449,0.00038555,2]
[399701407,1766627470180,-363.75121535,0.00038555,2]
[399701408,1766627470191,-300.0,0.00038555,2]
[399701409,1766627470200,-302.80443322,0.00038555,2]
[399701410,1766627470210,-576.88661357,0.00038555,2]
[399701411,1766627470219,-1000.0,0.00038603,7]
[399701412,1766627470229,-150.0,0.0003861,30]
[399701413,1766627470239,-150.0,0.0003861,30]
[399701414,1766627470248,-1000.0,0.00038624,7]
[399701415,1766627470262,-152.0,0.0003863,90]
[399701416,1766627470272,-211.0,0.0003863,90]
[399701417,1766627470282,-300.0,0.00038631,2]
[399701418,1766627470292,-1000.0,0.00038645,7]
[399701419,1766627470302,-1000.0,0.0003865,7]
[399701420,1766627470311,-1000.0,0.00038653,7]
[399701421,1766627470321,-150.0,0.00038669,7]
[399701422,1766627470330,-1000.0,0.00038682,7]
[399701423,1766627470340,-200.0,0.00038687,20]
[399701424,1766627470349,-1000.0,0.00038687,7]
[399701425,1766627470358,-1000.0,0.00038689,7]
[399701426,1766627470367,-1011.82883581,0.00038689,7]
[399701427,1766627470378,-500.0,0.000387,120]
[399701428,1766627470387,-383.35,0.000387,14]
[399701429,1766627470396,-300.0,0.00038701,2]
[399701430,1766627470406,-1000.0,0.00038715,7]
[399701431,1766627470416,-150.0,0.00038725,7]
[399701432,1766627470426,-1000.0,0.00038728,7]
[399701433,1766627470436,-1000.0,0.00038737,7]
[399701434,1766627470446,-1000.0,0.00038751,7]
[399701435,1766627470456,-2000.0,0.00038767,120]
[399701436,1766627470466,-2000.0,0.00038767,120]
[399701437,1766627470475,-2000.0,0.00038767,120]
[399701438,1766627470486,-2000.0,0.00038767,120]
[399701439,1766627470496,-1000.0,0.00038767,30]
[399701440,1766627470506,-650.434,0.00038767,30]
[399701441,1766627470516,-1529.38,0.00038767,30]
[399701442,1766627470525,-1529.38,0.00038767,30]
[399701443,1766627470535,-1529.38,0.00038767,30]
[399701444,1766627470544,-1529.38,0.00038767,30]
[399701445,1766627470554,-150.0,0.0003878,7]
[399701446,1766627470563,-5888.0,0.00038784,2]
[399701447,1766627470573,-1000.0,0.00038788,7]
[399701448,1766627470583,-6082.8,0.000388,30]
[399701449,1766627470592,-1000.0,0.000388,120]
[399701450,1766627470602,-1081.64,0.000388,120]
[399701451,1766627470613,-165.3,0.000388,27]
[399701452,1766627470622,-165.3,0.000388,27]
[399701453,1766627470632,-1000.0,0.00038807,7]
[399701454,1766627470643,-1000.0,0.00038808,7]
[399701455,1766627470652,-797.48281101,0.0003881,120]
[399701456,1766627470662,-1000.0,0.00038819,7]
[399701457,1766627470671,-1000.0,0.00038823,7]
[399701458,1766627470682,-1000.0,0.00038823,7]
[399701459,1766627470691,-1000.0,0.00038837,7]
[399701460,1766627470702,-1000.0,0.00038846,7]
[399701461,1766627470713,-953.0,0.00038872,2]
[399701462,1766627470723,-953.0,0.00038878,2]
[399701463,1766627470733,-300.0,0.00038879,2]
[399701464,1766627470743,-360.36,0.000389,30]
[399701465,1766627470753,-690.12276909,0.000389,2]
[399701466,1766627470762,-251.59923132,0.000389,2]
[399701467,1766627470771,-676.65137989,0.000389,2]
[399701468,1766627470781,-191.62140676,0.000389,2]
[399701469,1766627470790,-1000.0,0.00038918,7]
[399701470,1766627470800,-1000.0,0.00038922,7]
[399701471,1766627470810,-953.0,0.00038923,2]
[399701472,1766627470819,-1000.0,0.00038925,7]
[399701473,1766627470829,-300.0,0.0003895,2]
[399701474,1766627470838,-500.0,0.00038961,30]
[399701475,1766627470848,-1000.0,0.00038962,7]
[399701476,1766627470857,-500.0,0.00038971,30]
[399701477,1766627470867,-24039.63149576,0.00038972,2]
[399701478,1766627470876,-8139.38389085,0.00038972,4]